bitfinex/quotes_SOLUSD_20240703
["timestamp","ask_amount","ask_price","bid_price","bid_amount"]
[1719969157649,6.5321,153.09,152.99,16.6378]
[1719969157860,6.5325,153.08,153.06,13.15]
[1719969158953,6.5322,153.09,153.06,13.15]
[1719969159467,6.5322,153.09,153.0,0.34]
[1719969159749,30.13105827,153.13,153.08,13.15]
[1719969159952,13.73825827,153.13,153.11,13.15]
[1719969160138,6.5307,153.13,153.11,13.15]
[1719969161758,6.5307,153.13,153.1,13.15]
[1719969162153,13.15,153.14,153.09,13.15]
[1719969162463,13.15,153.14,153.01,6.3972]
[1719969162464,13.15,153.11,153.01,6.3972]
[1719969162634,13.15,153.1,153.01,6.3972]
[1719969162838,6.5329,153.07,153.05,13.15]
[1719969163280,6.533,153.07,153.0,15.6922]
[1719969163566,6.533,153.07,153.04,13.15]
[1719969164649,6.533,153.07,153.03,13.15]
[1719969165339,6.533,153.07,153.0,15.6922]
[1719969165659,6.533,153.07,153.03,13.15]
[1719969166361,32.5848,153.11,153.04,13.15]
[1719969166362,6.5322,153.09,153.04,13.15]
[1719969166550,19.6818,153.1,153.05,13.15]
[1719969166751,6.5318,153.1,153.05,13.15]
[1719969166957,19.6818,153.1,153.05,13.15]
[1719969167435,6.5321,153.09,153.05,13.15]
[1719969168456,6.5321,153.09,153.06,13.15]
[1719969169059,13.51315827,153.13,153.07,13.15]
[1719969169265,6.5311,153.12,153.08,13.15]
[1719969169576,6.5311,153.12,153.04,13.15]
[1719969169577,13.51315827,153.13,153.04,13.15]
[1719969169766,13.51315827,153.13,153.09,13.15]
[1719969169963,6.5303,153.13,153.1,13.15]
[1719969170552,7.20755827,153.17,153.1,15.4506]
[1719969170767,6.5292,153.16,153.14,13.15]
[1719969171174,7.20755827,153.17,153.14,13.15]
[1719969171554,6.5291,153.16,153.14,13.15]
[1719969171754,6.5291,153.16,153.11,1.30600886]
[1719969172468,6.5296,153.15,153.11,1.30600886]
[1719969173768,16.319,153.2,153.11,1.30600886]
[1719969173956,0.34,153.19,153.11,1.30600886]
[1719969174157,6.5294,153.16,153.11,1.30594796]
[1719969174562,6.5287,153.17,153.1,15.4506]
[1719969177049,6.5291,153.16,153.1,15.4506]
[1719969177265,6.5287,153.17,153.1,15.4506]
[1719969177677,7.20755827,153.21,153.12,26.26]
[1719969178255,6.5279,153.19,153.12,26.26]
[1719969180664,13.73485827,153.21,153.12,26.26]
[1719969180876,6.5263,153.23,153.15,26.26]
[1719969182279,6.5253,153.25,153.16,22.69]
[1719969182460,6.5253,153.25,153.18,26.26]
[1719969183188,6.5249,153.26,153.18,26.26]
[1719969183583,7.20755827,153.28,153.19,1.30515636]
[1719969183804,6.5241,153.28,153.21,26.26]
[1719969183960,6.5241,153.28,153.22,1.30503629]
[1719969184165,6.1689,153.3,153.21,26.26]
[1719969184600,6.5243,153.28,153.21,26.26]
[1719969185783,6.5243,153.28,153.18,26.26]
[1719969186082,7.20755827,153.32,153.21,6.5916]
[1719969186275,6.5228,153.31,153.22,0.34]
[1719969187377,7.20755827,153.32,153.22,0.17]
[1719969187584,7.20755827,153.32,153.21,32.8516]
[1719969187770,7.20755827,153.32,153.22,0.17]
[1719969188085,6.5227,153.31,153.22,0.34]
[1719969189192,7.20755827,153.32,153.21,32.8516]
[1719969189493,0.17,153.31,153.21,32.8516]
[1719969189679,6.5234,153.3,153.21,32.8516]
[1719969190181,6.5236,153.29,153.21,32.8516]
[1719969190391,6.6927,153.31,153.21,32.8516]
[1719969190599,6.5227,153.31,153.21,32.8516]
[1719969190775,6.5231,153.3,153.21,32.8516]
[1719969190971,6.5243,153.28,153.2,16.6003]
[1719969191199,16.3062,153.32,153.2,16.6003]
[1719969191396,0.34,153.31,153.2,16.6003]
[1719969192774,6.5232,153.3,153.2,16.6003]
[1719969193384,0.17,153.31,153.2,16.6003]
[1719969193385,6.5224,153.32,153.21,0.34]
[1719969193582,6.5227,153.31,153.21,0.34]
[1719969193887,6.5231,153.3,153.21,0.34]
[1719969194773,6.5224,153.32,153.21,0.34]
[1719969195382,15.6928,153.33,153.21,0.34]
[1719969195883,15.6928,153.33,153.25,13.11]
[1719969196083,13.11,153.31,153.26,13.11]
[1719969196781,6.5226,153.32,153.26,13.11]
[1719969197106,13.11,153.31,153.26,13.11]
[1719969198081,19.633,153.31,153.26,13.11]
[1719969198594,13.11,153.31,153.26,13.11]
[1719969198894,19.6324,153.32,153.27,13.11]
[1719969199094,6.5215,153.34,153.28,13.11]
[1719969199296,6.5215,153.34,153.29,13.11]
[1719969199477,19.6315,153.34,153.29,13.11]
[1719969199677,6.5215,153.34,153.29,13.11]
[1719969199912,19.6315,153.34,153.29,13.11]
[1719969200398,6.5215,153.34,153.29,13.11]
[1719969200599,19.6315,153.34,153.29,13.11]
[1719969201098,6.5219,153.33,153.29,13.11]
[1719969201397,6.5219,153.33,153.3,13.11]
[1719969201589,6.5215,153.34,153.3,13.11]
[1719969201790,19.6311,153.35,153.3,13.11]
[1719969201999,6.5211,153.35,153.3,13.11]
[1719969202296,6.5211,153.35,153.31,13.11]
[1719969203297,19.6311,153.35,153.3,13.11]
[1719969203927,6.5211,153.35,153.3,13.11]
[1719969204104,6.5216,153.34,153.3,13.11]
[1719969204290,13.11,153.33,153.27,16.4018]
[1719969204492,13.11,153.32,153.28,13.11]
[1719969204803,19.6326,153.32,153.27,29.5118]
[1719969205112,6.5226,153.32,153.27,29.5118]
[1719969206118,6.522,153.33,153.27,29.5118]
[1719969206316,19.632,153.33,153.28,13.11]
[1719969207197,6.5227,153.31,153.27,29.5118]
[1719969207406,19.6323,153.32,153.27,29.5118]
[1719969207615,6.5223,153.32,153.27,29.5118]
[1719969207806,16.3009,153.37,153.28,13.11]
[1719969208009,13.11,153.33,153.27,16.4018]
[1719969208213,13.11,153.32,153.28,13.11]
[1719969208395,13.11,153.32,153.27,29.5118]
[1719969208600,19.6323,153.32,153.27,29.5118]
[1719969209006,19.6331,153.3,153.24,6.2342]
[1719969209201,13.11,153.3,153.25,13.11]
[1719969210122,19.6332,153.3,153.25,13.11]
[1719969210535,6.5244,153.27,153.23,16.0632]
[1719969210700,19.6344,153.27,153.23,16.0632]
[1719969211531,13.11,153.26,153.23,16.0632]
[1719969211737,6.5251,153.26,153.2,6.2133]
[1719969212133,6.5251,153.26,153.19,16.6175]
[1719969212134,6.7489181,153.27,153.19,16.6175]
[1719969212313,6.5248,153.26,153.19,16.6175]
[1719969213829,0.2244181,153.27,153.19,16.6175]
[1719969214345,0.2244181,153.27,153.2,0.17]
[1719969214518,0.2244181,153.27,153.2,0.34]
[1719969214708,0.2244181,153.27,153.2,0.17]
[1719969214912,0.2244181,153.27,153.19,16.6175]
[1719969215345,0.2244181,153.27,153.2,0.17]
[1719969215715,0.2244181,153.27,153.2,0.34]
[1719969217633,0.2244181,153.27,153.21,47.6461]
[1719969217827,0.2244181,153.27,153.22,0.34]
[1719969218555,0.2244181,153.27,153.24,26.24]
[1719969218751,0.2244181,153.27,153.25,0.34]
[1719969220348,6.521,153.35,153.25,0.34]
[1719969220349,7.20755827,153.41,153.27,15.9411]
[1719969220532,6.5206,153.36,153.28,0.34]
[1719969221347,6.5202,153.37,153.28,0.34]
[1719969221557,7.20755827,153.41,153.28,0.34]
[1719969221739,6.5196,153.39,153.28,0.34]
[1719969221942,6.5198,153.38,153.28,0.34]
[1719969223148,6.5201,153.37,153.28,0.34]
[1719969224453,6.5195,153.39,153.28,0.34]
[1719969224850,6.519,153.4,153.28,0.34]
[1719969225166,6.5193,153.39,153.28,0.34]
[1719969225328,6.5198,153.38,153.28,0.34]
[1719969225654,6.5203,153.37,153.27,42.1811]
[1719969226055,6.5198,153.38,153.27,42.1811]
[1719969226245,6.5201,153.37,153.27,42.1811]
[1719969226958,6.5202,153.37,153.28,0.34]
[1719969227654,6.5198,153.38,153.28,0.34]
[1719969227847,6.5202,153.37,153.28,0.34]
[1719969228255,6.5214,153.35,153.27,15.9411]
[1719969228453,6.5215,153.34,153.27,15.9411]
[1719969229742,6.5219,153.33,153.27,15.9411]
[1719969230651,6.5215,153.34,153.27,15.9411]
[1719969231854,6.5202,153.37,153.27,15.9411]
[1719969232055,6.5207,153.36,153.27,15.9411]
[1719969232450,6.521,153.35,153.27,15.9411]
[1719969232655,6.5215,153.34,153.27,15.9411]
[1719969233461,6.5198,153.35,153.23,15.0648]
[1719969233660,6.5239,153.29,153.23,15.0648]
[1719969233860,42.5451,153.33,153.23,15.0648]
[1719969233861,6.524,153.28,153.23,15.0648]
[1719969234185,16.3073,153.31,153.23,15.0648]
[1719969234362,16.3073,153.31,153.19,15.0648]
[1719969234363,26.58,153.3,153.19,15.0648]
[1719969235076,6.5245,153.27,153.19,15.0648]
[1719969235468,6.5248,153.26,153.19,15.0648]
[1719969236554,42.5199,153.3,153.19,15.0648]
[1719969236555,6.5253,153.25,153.19,15.0648]
[1719969236759,42.5199,153.3,153.19,15.0648]
[1719969236760,6.5249,153.26,153.19,15.0648]
[1719969237367,6.5245,153.27,153.19,15.0648]
[1719969238656,6.5251,153.26,153.19,15.0648]
[1719969238883,0.34,153.28,153.19,15.0648]
[1719969238884,26.24,153.27,153.19,15.0648]
[1719969239058,0.34,153.26,153.19,15.0648]
[1719969239255,6.526,153.24,153.19,15.0648]
[1719969239872,0.34,153.26,153.19,15.0648]
[1719969240189,6.8652,153.26,153.19,15.0648]
[1719969240365,6.5252,153.26,153.19,15.0648]
[1719969240999,6.5244,153.28,153.19,15.0648]
[1719969241291,42.1799,153.3,153.19,15.0648]
[1719969241292,32.7632,153.3,153.19,15.0648]
[1719969241505,6.5236,153.29,153.19,15.0648]
[1719969241691,6.523,153.31,153.2,0.34]
[1719969241890,6.5232,153.3,153.2,0.34]
[1719969242475,6.5226,153.32,153.2,0.34]
[1719969242798,6.5231,153.3,153.2,0.34]
[1719969243309,6.5223,153.32,153.21,22.0143]
[1719969243464,26.24,153.33,153.23,15.5258]
[1719969243465,6.5219,153.33,153.23,15.5258]
[1719969243670,6.5223,153.32,153.24,0.17]
[1719969244098,6.5219,153.33,153.24,0.17]
[1719969244974,42.541,153.37,153.24,0.17]
[1719969245176,6.523,153.31,153.23,15.5258]
[1719969245397,7.54755827,153.36,153.23,15.5258]
[1719969245677,6.5219,153.33,153.24,0.17]
[1719969245884,6.5219,153.33,153.24,1.47459186]
[1719969246370,7.20755827,153.36,153.25,22.2614]
[1719969246606,6.5209,153.36,153.27,15.9268]
[1719969246898,6.5209,153.36,153.28,0.17]
[1719969247506,6.5202,153.37,153.28,0.34]
[1719969247817,16.2973,153.4,153.27,15.9268]
[1719969248285,6.5213,153.35,153.27,15.9268]
[1719969249614,6.5205,153.37,153.27,15.9268]
[1719969250297,6.5205,153.37,153.28,0.17]
[1719969251614,6.5206,153.36,153.28,0.17]
[1719969252215,6.5202,153.37,153.28,0.34]
[1719969252507,6.5199,153.38,153.28,0.34]
[1719969253422,6.5202,153.37,153.28,0.34]
[1719969253617,6.5198,153.38,153.28,0.34]
[1719969253832,7.20755827,153.4,153.3,16.0447]
[1719969254120,0.8283643,153.42,153.31,0.17]
[1719969254316,0.17,153.41,153.31,0.17]
[1719969254487,6.5193,153.39,153.31,0.17]
[1719969256409,6.5197,153.38,153.3,16.0447]
[1719969256592,6.5194,153.39,153.3,16.0447]
[1719969257628,6.5189,153.4,153.31,0.17]
[1719969257920,6.5189,153.4,153.31,0.34]
[1719969258298,6.5193,153.39,153.3,16.0447]
[1719969259500,6.8463643,153.42,153.31,0.34]
[1719969259721,6.5184,153.41,153.32,16.2483]
[1719969259915,6.5184,153.41,153.33,0.17]
[1719969260302,6.8464643,153.42,153.34,6.1036]
[1719969261114,0.3283643,153.42,153.35,16.2483]
[1719969261700,0.3283643,153.42,153.36,0.17]
[1719969262313,0.3283643,153.42,153.37,22.9515]
[1719969262525,6.515,153.5,153.38,42.8852]
[1719969263221,26.24,153.54,153.4,16.3052]
[1719969263428,26.24,153.51,153.4,16.3052]
[1719969263606,6.5155,153.48,153.4,16.3052]
[1719969264003,6.5151,153.49,153.4,16.3052]
[1719969264220,6.5156,153.48,153.4,16.3052]
[1719969264440,6.5151,153.49,153.4,16.3052]
[1719969265227,6.5147,153.5,153.4,16.3052]
[1719969265428,26.24,153.51,153.4,16.3052]
[1719969265624,26.24,153.51,153.41,0.34]
[1719969266003,32.7543,153.51,153.41,0.34]
[1719969266204,6.5147,153.5,153.41,0.34]
[1719969266724,6.5152,153.49,153.41,0.17]
[1719969267026,6.5152,153.49,153.4,16.3052]
[1719969267330,6.5147,153.5,153.4,16.3052]
[1719969267539,32.7543,153.51,153.41,0.34]
[1719969267718,6.5143,153.51,153.41,0.34]
[1719969268031,6.5146,153.5,153.41,0.34]
[1719969268622,26.24,153.53,153.41,0.34]
[1719969268801,6.5138,153.52,153.41,0.34]
[1719969269004,6.5145,153.51,153.41,0.34]
[1719969269203,26.24,153.53,153.41,0.34]
[1719969269204,6.5148,153.5,153.41,0.17]
[1719969269412,6.5143,153.51,153.41,0.17]
[1719969269615,6.5143,153.51,153.41,0.34]
[1719969270008,6.5148,153.5,153.41,0.34]
[1719969270209,6.5148,153.5,153.41,0.17]
[1719969270726,6.5142,153.51,153.41,0.34]
[1719969271031,32.7534,153.53,153.43,6.1465]
[1719969271446,6.2441,153.59,153.44,15.6711]
[1719969271614,0.8283643,153.57,153.45,16.0111]
[1719969271803,0.8283643,153.57,153.47,15.6711]
[1719969272008,6.5143,153.51,153.47,15.6711]
[1719969272439,6.5138,153.52,153.47,15.6711]
[1719969274140,6.5134,153.53,153.47,15.6711]
[1719969274441,26.24,153.55,153.47,15.6711]
[1719969274610,6.5122,153.56,153.47,15.6711]
[1719969274813,6.5125,153.55,153.47,15.6711]
[1719969275118,6.5129,153.54,153.47,15.6711]
[1719969275311,6.5134,153.53,153.47,15.6711]
[1719969276410,6.513,153.54,153.47,15.6711]
[1719969276613,0.8283643,153.57,153.47,15.6711]
[1719969276817,7.3403643,153.57,153.47,15.6711]
[1719969277536,6.5129,153.54,153.47,15.6711]
[1719969278222,6.5124,153.56,153.47,15.6711]
[1719969279145,0.8283643,153.57,153.47,15.6711]
[1719969279326,0.8283643,153.57,153.49,15.7239]
[1719969279725,7.3401643,153.57,153.49,15.7239]
[1719969280044,0.8283643,153.57,153.49,15.7239]
[1719969283657,0.8283643,153.57,153.5,6.2021]
[1719969289802,13.06,153.56,153.51,13.06]
[1719969290571,13.06,153.55,153.5,19.2621]
[1719969291764,13.06,153.56,153.51,13.06]
[1719969293354,0.8283643,153.57,153.51,13.06]
[1719969293612,13.06,153.56,153.52,13.91697988]
[1719969293808,13.8883643,153.57,153.52,13.91697988]
[1719969294120,13.8883643,153.57,153.53,1.30239521]
[1719969294493,13.8883643,153.57,153.52,13.06]
[1719969294693,13.06,153.56,153.51,13.06]
[1719969295126,7.3400643,153.57,153.5,19.2621]
[1719969295127,13.06,153.55,153.5,19.2621]
[1719969297023,7.3400643,153.57,153.5,19.2621]
[1719969297213,7.3400643,153.57,153.51,13.06]
[1719969297841,0.8283643,153.57,153.5,6.2021]
[1719969298051,13.06,153.51,153.49,15.7239]
[1719969298636,0.8283643,153.57,153.49,15.7239]
[1719969298934,13.06,153.54,153.49,15.7239]
[1719969299130,6.5122,153.56,153.49,15.7239]
[1719969299307,13.06,153.54,153.49,15.7239]
[1719969301061,13.06,153.51,153.49,15.7239]
[1719969301535,0.8283643,153.57,153.49,15.7239]
[1719969301738,13.06,153.52,153.49,15.7239]
[1719969302034,0.8283643,153.57,153.49,15.7239]
[1719969302239,13.06,153.53,153.49,15.7239]
[1719969302817,13.06,153.52,153.49,15.7239]
[1719969303510,13.06,153.51,153.49,15.7239]
[1719969304319,23.5074643,153.57,153.46,6.5574]
[1719969304506,13.06,153.48,153.45,15.1524]
[1719969304708,13.06,153.46,153.42,6.6189]
[1719969304913,13.06,153.45,153.42,6.6189]
[1719969305152,13.06,153.44,153.42,6.6189]
[1719969305743,13.06,153.43,153.41,15.0897]
[1719969305922,6.5165,153.46,153.41,15.0897]
[1719969306136,13.06,153.43,153.41,15.0897]
[1719969307144,22.7589,153.51,153.41,15.0897]
[1719969307348,22.7589,153.51,153.41,28.1497]
[1719969307349,13.06,153.46,153.41,28.1497]
[1719969308440,6.5152,153.49,153.41,15.0897]
[1719969308441,13.06,153.45,153.41,15.0897]
[1719969308943,0.17,153.5,153.41,15.0897]
[1719969308944,13.06,153.44,153.41,15.0897]
[1719969309147,13.06,153.42,153.41,15.0897]
[1719969310144,6.5156,153.48,153.41,15.0897]
[1719969310525,13.06,153.44,153.41,15.0897]
[1719969310752,13.06,153.43,153.41,15.0897]
[1719969310927,13.06,153.42,153.38,6.1893]
[1719969311123,13.06,153.39,153.37,15.6896]
[1719969311449,13.06,153.44,153.37,15.6896]
[1719969311450,13.06,153.38,153.37,15.6896]
[1719969312732,0.17,153.43,153.37,15.6896]
[1719969313052,6.516,153.47,153.37,28.7496]
[1719969313234,16.287,153.5,153.38,13.06]
[1719969313235,13.06,153.43,153.38,13.06]
[1719969314358,6.5154,153.49,153.37,15.6896]
[1719969314530,13.06,153.44,153.39,13.06]
[1719969314851,13.06,153.44,153.37,15.6896]
[1719969315032,13.06,153.44,153.39,13.06]
[1719969315436,6.5155,153.48,153.39,13.06]
[1719969315639,13.06,153.45,153.4,13.06]
[1719969316548,13.06,153.45,153.4,6.1393]
[1719969316748,13.06,153.45,153.4,19.1993]
[1719969316953,13.06,153.46,153.41,13.06]
[1719969317152,6.5147,153.5,153.42,16.4095]
[1719969317462,13.06,153.47,153.42,29.4695]
[1719969317659,13.06,153.47,153.42,16.4095]
[1719969318169,16.2862,153.51,153.42,16.4095]
[1719969318390,13.06,153.44,153.42,16.4095]
[1719969319735,26.17,153.48,153.42,16.4095]
[1719969319956,6.517,153.45,153.42,16.4095]
[1719969320145,6.517,153.45,153.4,6.1393]
[1719969320661,32.6855,153.48,153.4,6.1393]
[1719969320863,26.17,153.48,153.4,6.1393]
[1719969321368,6.5159,153.47,153.4,6.1393]
[1719969321669,6.5164,153.46,153.4,6.1393]
[1719969323739,6.5178,153.43,153.38,15.2376]
[1719969323943,6.5181,153.42,153.34,15.0747]
[1719969324158,6.5185,153.41,153.34,15.0747]
[1719969324441,6.5192,153.4,153.34,15.0747]
[1719969324758,6.5186,153.41,153.34,15.0747]
[1719969325737,32.6881,153.42,153.34,15.0747]
[1719969326973,6.5181,153.42,153.34,15.0747]
[1719969327273,33.0277,153.43,153.34,15.0747]
[1719969328159,6.5181,153.42,153.34,15.0747]
[1719969330861,6.5186,153.41,153.34,15.0747]
[1719969331270,33.028,153.43,153.34,15.0747]
[1719969331482,32.858,153.43,153.34,15.0747]
[1719969331862,26.34,153.43,153.34,15.0747]
[1719969332281,6.5189,153.4,153.34,15.0747]
[1719969332460,6.5193,153.39,153.34,15.0747]
[1719969332879,6.5185,153.41,153.34,15.0747]
[1719969333884,0.17,153.42,153.34,15.0747]
[1719969334090,6.5187,153.41,153.34,15.0747]
[1719969334271,0.17,153.42,153.34,15.0747]
[1719969334585,47.8367,153.4,153.3,15.4316]
[1719969334757,6.5219,153.33,153.3,15.4316]
[1719969335392,6.5215,153.34,153.3,15.4316]
[1719969337487,26.17,153.34,153.26,15.3374]
[1719969338191,6.5219,153.33,153.26,15.3374]
[1719969338676,32.6915,153.34,153.26,15.3374]
[1719969338877,32.6915,153.34,153.26,14.8374]
[1719969339276,26.17,153.34,153.26,14.8374]
[1719969339686,6.521,153.36,153.26,14.8374]
[1719969341301,26.51,153.37,153.26,14.8374]
[1719969341479,6.5215,153.34,153.26,14.8374]
[1719969344497,6.5224,153.32,153.26,14.8374]
[1719969344795,6.5222,153.33,153.26,14.8374]
[1719969345486,6.5225,153.32,153.26,14.8374]
[1719969346187,26.17,153.31,153.26,14.8374]
[1719969346388,16.3085,153.3,153.24,6.3546]
[1719969346600,16.3085,153.3,153.22,16.4643]
[1719969346783,6.5249,153.26,153.22,16.4643]
[1719969347494,0.17,153.29,153.22,16.4643]
[1719969347495,6.5245,153.27,153.22,16.4643]
[1719969347685,6.5241,153.28,153.22,16.4643]
[1719969348005,6.6935,153.29,153.22,16.4643]
[1719969348304,26.34,153.28,153.22,16.4643]
[1719969348499,26.17,153.28,153.22,16.4643]
[1719969348688,6.5254,153.25,153.18,15.1289]
[1719969349100,6.5249,153.26,153.18,15.1289]
[1719969350508,6.6945,153.27,153.18,15.1289]
[1719969350886,26.17,153.28,153.18,15.1289]
[1719969351088,6.5245,153.27,153.18,15.1289]
[1719969352007,6.5248,153.26,153.18,15.1289]
[1719969352798,6.5245,153.27,153.18,15.1289]
[1719969352995,32.6941,153.28,153.18,15.1289]
[1719969353195,6.5241,153.28,153.19,0.17]
[1719969353496,6.5236,153.29,153.19,0.17]
[1719969353712,32.693,153.31,153.21,15.6342]
[1719969353922,6.5243,153.28,153.21,15.6342]
[1719969354287,6.5245,153.27,153.21,15.6342]
[1719969354989,26.17,153.28,153.21,15.6342]
[1719969355194,6.5256,153.25,153.21,15.6342]
[1719969355386,6.5256,153.25,153.2,6.3254]
[1719969355599,6.526,153.24,153.17,16.591]
[1719969356212,6.5262,153.23,153.17,16.591]
[1719969356718,42.4837,153.25,153.17,16.591]
[1719969356911,6.5269,153.22,153.17,16.591]
[1719969357214,6.5261,153.23,153.17,16.591]
[1719969357989,0.17,153.24,153.17,16.591]
[1719969358186,6.5273,153.21,153.17,16.591]
[1719969358420,6.5266,153.22,153.17,16.591]
[1719969358919,0.34,153.24,153.17,16.591]
[1719969359102,6.5262,153.23,153.17,16.591]
[1719969359803,6.5261,153.23,153.17,16.591]
[1719969360716,0.17,153.24,153.17,16.591]
[1719969361407,6.5271,153.21,153.17,16.591]
[1719969362601,0.34,153.24,153.17,16.591]
[1719969362924,6.5277,153.2,153.17,16.591]
[1719969363306,0.34,153.24,153.17,16.591]
[1719969363509,6.5271,153.21,153.17,16.591]
[1719969365119,6.5266,153.22,153.17,16.591]
[1719969365300,0.34,153.24,153.17,16.591]
[1719969365503,6.5264,153.23,153.17,16.591]
[1719969366196,6.5266,153.22,153.17,16.591]
[1719969367328,6.5261,153.23,153.17,16.591]
[1719969369733,6.5266,153.22,153.17,16.591]
[1719969371001,26.17,153.25,153.17,16.591]
[1719969371522,6.5264,153.23,153.17,16.591]
[1719969372037,6.5265,153.22,153.17,16.591]
[1719969372413,6.5278,153.2,153.17,16.591]
[1719969373736,13.13,153.18,153.17,16.591]
[1719969376164,6.5274,153.2,153.17,16.591]
[1719969376320,13.13,153.18,153.17,16.591]
[1719969378218,0.17,153.26,153.17,16.591]
[1719969378219,6.5268,153.22,153.17,16.591]
[1719969378421,13.13,153.2,153.17,16.591]
[1719969379037,19.658,153.19,153.17,16.591]
[1719969379212,13.13,153.18,153.17,16.591]
[1719969379633,13.13,153.18,153.13,16.0136]
[1719969379834,13.13,153.14,153.13,16.0136]
[1719969381044,13.13,153.16,153.13,16.0136]
[1719969381957,6.5283,153.18,153.13,16.0136]
[1719969382953,54.1618539,153.28,153.13,16.0136]
[1719969383160,26.26,153.25,153.14,0.17]
[1719969383682,6.5254,153.25,153.14,0.17]
[1719969383853,6.5261,153.23,153.14,0.34]
[1719969384025,6.5265,153.22,153.14,0.34]
[1719969384852,6.5271,153.21,153.14,0.34]
[1719969385355,6.5274,153.2,153.14,0.34]
[1719969385565,6.5274,153.2,153.14,0.17]
[1719969386433,6.5271,153.21,153.14,0.17]
[1719969386630,6.5278,153.19,153.14,0.17]
[1719969386831,6.5274,153.2,153.14,0.17]
[1719969387944,6.5271,153.21,153.14,0.17]
[1719969389143,6.5275,153.2,153.13,16.0136]
[1719969389655,6.527,153.21,153.13,16.0136]
[1719969390252,6.5266,153.22,153.13,16.0136]
[1719969390456,6.5251,153.26,153.15,16.3081]
[1719969390639,83.8633,153.36,153.18,16.3081]
[1719969390640,6.5245,153.27,153.18,16.3081]
[1719969390839,26.26,153.29,153.18,16.3081]
[1719969390840,6.5243,153.28,153.18,16.3081]
[1719969391177,6.5239,153.29,153.18,16.3081]
[1719969391338,26.26,153.31,153.19,0.34]
[1719969392065,6.5239,153.29,153.19,0.34]
[1719969392260,6.5239,153.29,153.2,15.2296]
[1719969392434,6.5239,153.29,153.21,0.17]
[1719969393140,6.5241,153.28,153.21,0.17]
[1719969394037,6.5241,153.28,153.2,15.2296]
[1719969394232,16.3097,153.29,153.2,15.2296]
[1719969394437,6.5256,153.25,153.2,15.2296]
[1719969394655,6.5257,153.24,153.2,15.2296]
[1719969394958,6.5269,153.21,153.2,15.2296]
[1719969395145,6.5269,153.21,153.17,6.002]
[1719969395348,26.26,153.25,153.17,6.002]
[1719969395349,6.5266,153.22,153.17,6.002]
[1719969395670,6.5262,153.23,153.17,6.002]
[1719969396246,6.5266,153.22,153.17,6.002]
[1719969396759,6.527,153.21,153.17,6.002]
[1719969397138,6.5266,153.22,153.17,6.002]
[1719969397345,6.5261,153.23,153.17,6.002]
[1719969398167,32.7856,153.25,153.17,6.002]
[1719969398339,26.26,153.25,153.17,6.002]
[1719969398762,6.526,153.24,153.17,6.002]
[1719969398969,6.5261,153.23,153.17,6.002]
[1719969399342,6.5266,153.22,153.17,6.002]
[1719969399743,6.5262,153.23,153.17,6.002]
[1719969402650,26.26,153.25,153.17,6.002]